[Event "FRA-chT Top 12 2019"]
[Site "Brest"]
[Date "2019.05.27"]
[Round "10.7"]
[White "Jeanne, Mickael"]
[Black "Smith, Axel"]
[Result "1/2-1/2"]
[ECO "A04"]
[WhiteElo "2150"]
[BlackElo "2481"]
[Annotator "RC"]
[PlyCount "172"]
[EventDate "2019.05.18"]
[EventType "team-tourn"]
[EventCountry "FRA"]
[SourceTitle "playchess.com"]
[Source "ChessBase"]
[SourceQuality "1"]
[TimeControl "40/5400+30:1800+30"]

1. Nf3 {[%emt 0:00:00]} g6 {[%emt 0:00:00]} 2. c4 {[%emt 0:00:10]} Bg7 {[%emt 0:00:00]} 3. Nc3 {[%emt 0:00:52]} e5 {[%emt 0:00:00]} 4. g3 {[%emt 0:00:32]} f5 {[%emt 0:00:09]} 5. d3 {[%emt 0:00:36]} d6 {[%emt 0:00:10]} 6. Bg2 {[%emt 0:00:09]} Ne7 {[%emt 0:00:09]} 7. Rb1 {[%emt 0:02:03]} h6 {[%emt 0:10:16]} 8. O-O {[%emt 0:03:07]} O-O {[%emt 0:00:06]} 9. Nd2 {[%emt 0:04:58]} a5 {[%emt 0:13:22]} 10. a3 {[%emt 0:02:09]} c6 {[%emt 0:02:23]} 11. b4 {[%emt 0:06:24]} axb4 {[%emt 0:00:45]} 12. axb4 {[%emt 0:00:07]} Be6 {[%emt 0:07:52]} 13. Qb3 {[%emt 0:05:45]} Nd7 {[%emt 0:08:48]} 14. b5 {[%emt 0:09:24]} Nc5 {[%emt 0:01:31]} 15. Qc2 {[%emt 0:01:50]} Qd7 {[%emt 0:12:03]} 16. Nb3 {[%emt 0:08:18]} Nxb3 {[%emt 0:01:18]} 17. Qxb3 {[%emt 0:00:21]} c5 {[%emt 0:06:31]} 18. Bb2 {[%emt 0:06:49]} f4 {[%emt 0:04:13]} 19. Ra1 {[%emt 0:02:52]} Rab8 {[%emt 0:01:03]} 20. Ra7 {[%emt 0:18:15]} Bh3 {[%emt 0:00:58]} 21. Nd5 {[%emt 0:06:29]} Bxg2 {[%emt 0:02:19]} 22. Kxg2 {[%emt 0:03:55]} Nxd5 {[%emt 0:01:59]} 23. cxd5 {[%emt 0:01:12]} f3+ {[%emt 0:05:00]} 24. exf3 {[%emt 0:00:54]} Qf7 {[%emt 0:00:07]} 25. Qc4 {[%emt 0:03:14]} Qxf3+ {[%emt 0:10:07]} 26. Kg1 {[%emt 0:00:05]} Qe2 {[%emt 0:00:06]} 27. Bc1 {[%emt 0:03:24]} Qf3 {[%emt 0:08:30]} 28. Qe4 {[%emt 0:01:01]} Qf7 {[%emt 0:01:47]} 29. Be3 {[%emt 0:00:37]} h5 {[%emt 0:01:34]} 30. Kg2 {[%emt 0:00:56]} Kh7 {[%emt 0:00:29]} 31. h4 {[%emt 0:01:19]} Rfe8 {[%emt 0:01:11]} 32. f3 {[%emt 0:00:40]} Qd7 {[%emt 0:00:21]} 33. Rb1 {[%emt 0:00:35]} Ra8 {[%emt 0:00:21]} 34. Qa4 {[%emt 0:03:04]} Rxa7 {[%emt 0:00:20]} 35. Qxa7 {[%emt 0:00:01]} Qf7 {[%emt 0:00:40]} 36. Qa2 {[%emt 0:00:31]} Qf8 {[%emt 0:00:52]} 37. Qa7 {[%emt 0:01:32]} Qf7 {[%emt 0:00:16]} 38. Qa2 {[%emt 0:00:07]} Kg8 {[%emt 0:00:33]} 39. Rf1 {[%emt 0:01:12]} Qd7 {[%emt 0:00:32]} 40. Qa4 {[%emt 0:01:12]} Qf5 {[%emt 0:00:26]} 41. Qa3 {[%emt 0:30:57]} Kh7 {[%emt 0:06:09]} 42. Rf2 {[%emt 0:00:00]} Rf8 {[%emt 0:00:18]} 43. Bg5 {[%emt 0:00:00]} Re8 {[%emt 0:00:15]} 44. Ra2 {[%emt 0:00:00]} Rc8 {[%emt 0:04:28]} 45. Rd2 {[%emt 0:00:00]} Kg8 {[%emt 0:08:48]} 46. Re2 {[%emt 0:00:00]} Kh8 {[%emt 0:02:53]} 47. Rd2 {[%emt 0:00:00]} Kh7 {[%emt 0:00:06]} 48. Re2 {[%emt 0:00:00]} Qf7 {[%emt 0:01:24]} 49. Qb3 {[%emt 0:00:00]} Ra8 {[%emt 0:01:06]} 50. Ra2 {[%emt 0:00:00]} Rf8 {[%emt 0:00:21]} 51. Rf2 {[%emt 0:00:00]} Qd7 {[%emt 0:00:53]} 52. Qa4 {[%emt 0:00:00]} Qf5 {[%emt 0:00:14]} 53. Qa3 {[%emt 0:00:00]} Rc8 {[%emt 0:00:26]} 54. Rd2 {[%emt 0:00:00]} Qf7 {[%emt 0:00:39]} 55. Qb3 {[%emt 0:00:00]} Re8 {[%emt 0:01:42]} 56. Ra2 {[%emt 0:00:00]} Rf8 {[%emt 0:00:34]} 57. Rf2 {[%emt 0:00:00]} Kh8 {[%emt 0:00:00]} 58. Qc4 {[%emt 0:00:00]} Qf5 {[%emt 0:00:00]} 59. Be7 {[%emt 0:00:11]} Rc8 {[%emt 0:01:19]} 60. Ra2 {[%emt 0:02:58]} Qf7 {[%emt 0:00:57]} 61. Bg5 {[%emt 0:00:29]} Kg8 {[%emt 0:02:30]} 62. Ra7 {[%emt 0:01:30]} Rf8 {[%emt 0:01:06]} 63. Qe4 {[%emt 0:00:08]} Kh7 {[%emt 0:00:12]} 64. Ra2 {[%emt 0:00:23]} Qd7 {[%emt 0:00:22]} 65. Qc4 {[%emt 0:00:12]} Qf7 {[%emt 0:00:44]} 66. Qe4 {[%emt 0:00:06]} Qd7 {[%emt 0:00:11]} 67. Qc4 {[%emt 0:00:05]} Rc8 {[%emt 0:01:01]} 68. Ra7 {[%emt 0:00:40]} Rb8 {[%emt 0:01:46]} 69. Ra2 {[%emt 0:01:16]} Rf8 {[%emt 0:00:05]} 70. Ra7 {[%emt 0:00:19]} Qc7 {[%emt 0:01:00]} 71. Ra2 {[%emt 0:00:39]} Kg8 {[%emt 0:01:30]} 72. Ra7 {[%emt 0:00:33]} Qd7 {[%emt 0:00:52]} 73. Ra2 {[%emt 0:00:11]} Kh7 {[%emt 0:01:25]} 74. Ra7 {[%emt 0:00:06]} Qf5 {[%emt 0:01:07]} 75. Qe4 {[%emt 0:00:08]} Qf7 {[%emt 0:00:04]} 76. Ra2 {[%emt 0:00:14]} Re8 {[%emt 0:00:39]} 77. Ra7 {[%emt 0:00:09]} Rc8 {[%emt 0:00:07]} 78. Qc4 {[%emt 0:00:36]} Rb8 {[%emt 0:00:22]} 79. Qe4 {[%emt 0:00:34]} Kh8 {[%emt 0:01:03]} 80. Qc4 {[%emt 0:00:51]} Qe8 {[%emt 0:00:45]} 81. Ra2 {[%emt 0:00:18]} Kg8 {[%emt 0:00:23]} 82. Qe4 {[%emt 0:00:54]} Qf7 {[%emt 0:00:37]} 83. Qc4 {[%emt 0:00:26]} Kh7 {[%emt 0:00:15]} 84. Ra7 {[%emt 0:00:11]} Qe8 {[%emt 0:00:25]} 85. Qa4 {[%emt 0:00:57]} Qg8 {[%emt 0:00:54]} 86. Qa2 {[%emt 0:00:32]} Qf7 {[%emt 0:00:18]} 1/2-1/2

[Event "FRA-chT Top 12 2019"]
[Site "Brest"]
[Date "2019.05.27"]
[Round "10.7"]
[White "Van Hoolandt, Patrick"]
[Black "Flear, Glenn C"]
[Result "0-1"]
[ECO "A13"]
[WhiteElo "2127"]
[BlackElo "2445"]
[Annotator "NA RC"]
[PlyCount "108"]
[EventDate "2019.05.18"]
[EventType "team-tourn"]
[EventCountry "FRA"]
[SourceTitle "playchess.com"]
[Source "ChessBase"]
[SourceQuality "1"]
[TimeControl "40/5400+30:1800+30"]

1. c4 {[%emt 0:00:00]} e6 {[%emt 0:05:03]} 2. d4 {[%emt 0:01:26]} d5 {[%emt 0:00:08]} 3. Nf3 {[%emt 0:00:24]} Nf6 {[%emt 0:00:27]} 4. Qc2 {[%emt 0:03:16]} c5 {[%emt 0:04:47]} 5. dxc5 {[%emt 0:04:36]} Bxc5 {[%emt 0:05:53]} 6. cxd5 {[%emt 0:07:03]} Qc7 {[%emt 0:14:09]} 7. Na3 {[%emt 0:13:20]} Nxd5 {[%emt 0:03:51]} 8. Bd2 {[%emt 0:06:32]} O-O {[%emt 0:07:28]} 9. Rc1 {[%emt 0:04:26]} b6 {[%emt 0:03:30]} 10. Nb5 {[%emt 0:06:11]} Qe7 {[%emt 0:05:24]} 11. e4 {[%emt 0:05:20]} Nb4 {[%emt 0:08:38]} 12. Qb1 {[%emt 0:01:50]} N4c6 {[%emt 0:07:51]} 13. Be2 {[%emt 0:05:12]} Bb7 14. O-O {[%emt 0:00:30]} a6 {[%emt 0:06:25]} 15. Nc3 {[%emt 0:00:24]} Nd4 {[%emt 0:00:44]} 16. Nxd4 {[%emt 0:19:11]} Bxd4 {[%emt 0:00:07]} 17. Bd3 {[%emt 0:02:34]} Nc6 {[%emt 0:02:03]} 18. Ne2 {[%emt 0:01:22]} Bc5 {[%emt 0:00:55]} 19. a3 {[%emt 0:00:53]} a5 {[%emt 0:01:34]} 20. Bc3 {[%emt 0:02:15]} e5 {[%emt 0:05:34]} 21. Ng3 {[%emt 0:00:55]} g6 {[%emt 0:00:30]} 22. Kh1 {[%emt 0:01:37]} Rfd8 {[%emt 0:01:36]} 23. Bc4 {[%emt 0:01:13]} Ba6 {[%emt 0:02:48]} 24. Bxa6 {[%emt 0:00:47]} Rxa6 {[%emt 0:00:05]} 25. Kg1 {[%emt 0:05:10]} Ra7 {[%emt 0:00:59]} 26. Rcd1 {[%emt 0:00:18]} Rad7 {[%emt 0:00:56]} 27. Rxd7 {[%emt 0:00:20]} Qxd7 {[%emt 0:01:28]} 28. b4 {[%emt 0:00:51]} axb4 {[%emt 0:00:35]} 29. axb4 {[%emt 0:00:01]} Bf8 {[%emt 0:01:15]} 30. Qb2 {[%emt 0:01:36]} Qe6 {[%emt 0:02:06]} 31. Rc1 {[%emt 0:01:28]} Bh6 {[%emt 0:02:16]} 32. Rb1 {[%emt 0:01:00]} Nd4 {[%emt 0:00:30]} 33. h3 {[%emt 0:02:17]} Qc4 {[%emt 0:00:39]} 34. Be1 {[%emt 0:00:53]} Bf4 {[%emt 0:01:02]} 35. Qc3 {[%emt 0:01:42]} Qxc3 {[%emt 0:00:43]} 36. Bxc3 {[%emt 0:00:01]} Bxg3 {[%emt 0:00:15]} 37. Bxd4 {[%emt 0:00:08]} Rxd4 {[%emt 0:00:08]} 38. fxg3 {[%emt 0:00:08]} Rxe4 {[%emt 0:00:07]} 39. Kf2 {[%emt 0:00:19]} b5 {[%emt 0:00:26]} 40. Kf3 {[%emt 0:01:10]} f5 {[%emt 0:02:53]} 41. g4 {[%emt 0:30:56]} Rf4+ {[%emt 0:31:22]} 42. Kg3 {[%emt 0:00:01]} fxg4 {[%emt 0:01:37]} 43. hxg4 {[%emt 0:00:03]} Kf7 {[%emt 0:00:25]} 44. Rh1 {[%emt 0:00:00]} Kg7 {[%emt 0:00:00]} 45. Re1 {[%emt 0:00:00]} Kf6 {[%emt 0:00:00]} 46. Rh1 {[%emt 0:00:00]} Rxb4 {[%emt 0:00:00]} 47. Rxh7 {[%emt 0:00:00]} Kg5 {[%emt 0:00:00]} 48. Rb7 {[%emt 0:00:00]} Rb3+ {[%emt 0:00:00]} 49. Kf2 Kxg4 {[%emt 0:00:00]} 50. Rb6 {[%emt 0:00:00]} g5 {[%emt 0:00:00]} 51. Rf6 {[%emt 0:00:00]} Rb2+ {[%emt 0:00:00]} 52. Kf1 {[%emt 0:00:00]} b4 {[%emt 0:00:00]} 53. Kg1 {[%emt 0:00:00]} e4 {[%emt 0:00:00]} 54. Kh2 {[%emt 0:00:00]} e3 0-1

[Event "FRA-chT Top 12 2019"]
[Site "Brest"]
[Date "2019.05.27"]
[Round "10.8"]
[White "Guichard, Pauline"]
[Black "Monpeurt, Cyrielle"]
[Result "1/2-1/2"]
[ECO "A46"]
[WhiteElo "2430"]
[BlackElo "2166"]
[Annotator "NA RC"]
[PlyCount "133"]
[EventDate "2019.05.18"]
[EventType "team-tourn"]
[EventCountry "FRA"]
[SourceTitle "playchess.com"]
[Source "ChessBase"]
[SourceQuality "1"]
[TimeControl "40/5400+30:1800+30"]

1. d4 {[%emt 0:00:00]} Nf6 {[%emt 0:00:00]} 2. Nf3 {[%emt 0:00:00]} e6 {[%emt 0:00:02]} 3. Bf4 {[%emt 0:00:00]} d5 {[%emt 0:00:49]} 4. e3 {[%emt 0:00:16]} c5 {[%emt 0:00:33]} 5. Nbd2 {[%emt 0:01:27]} Nc6 {[%emt 0:00:32]} 6. c3 {[%emt 0:00:14]} cxd4 {[%emt 0:00:44]} 7. exd4 {[%emt 0:00:37]} Nh5 {[%emt 0:00:05]} 8. Be3 {[%emt 0:00:31]} Bd6 {[%emt 0:00:18]} 9. g3 {[%emt 0:13:43]} O-O {[%emt 0:08:58]} 10. Ne5 {[%emt 0:06:57]} g6 {[%emt 0:00:16]} 11. Bh6 {[%emt 0:03:57]} Ng7 {[%emt 0:02:33]} 12. f4 {[%emt 0:02:06]} f6 {[%emt 0:02:01]} 13. Nxc6 {[%emt 0:14:56]} bxc6 {[%emt 0:00:17]} 14. Qa4 {[%emt 0:00:07]} Rb8 {[%emt 0:05:42]} 15. Nb3 {[%emt 0:03:40]} Qc7 {[%emt 0:09:51]} 16. O-O-O {[%emt 0:06:10]} Rf7 {[%emt 0:09:42]} 17. Bxg7 {[%emt 0:00:12]} Kxg7 {[%emt 0:00:13]} 18. Bd3 {[%emt 0:03:55]} Qb6 {[%emt 0:10:24]} 19. Qa5 {[%emt 0:02:08]} Rc7 {[%emt 0:06:22]} 20. Qxb6 {[%emt 0:05:57]} axb6 {[%emt 0:00:08]} 21. Nd2 {[%emt 0:01:53]} c5 {[%emt 0:03:56]} 22. Kb1 {[%emt 0:00:07]} Ra7 {[%emt 0:07:05]} 23. Nf3 {[%emt 0:03:47]} Rba8 {[%emt 0:05:41]} 24. a3 {[%emt 0:00:07]} Bd7 {[%emt 0:01:23]} 25. Bc2 {[%emt 0:03:16]} Kf7 {[%emt 0:03:37]} 26. Rd2 {[%emt 0:02:08]} c4 {[%emt 0:00:32]} 27. Bd1 {[%emt 0:06:00]} e5 {[%emt 0:11:07]} 28. dxe5 {[%emt 0:02:35]} Bxa3 {[%emt 0:00:10]} 29. Nd4 {[%emt 0:03:20]} Bc5 {[%emt 0:00:35]} 30. e6+ {[%emt 0:00:08]} Bxe6 {[%emt 0:00:04]} 31. Nxe6 {[%emt 0:00:03]} Be3 {[%emt 0:01:15]} 32. Nc7 {[%emt 0:04:15]} Ra1+ {[%emt 0:02:15]} 33. Kc2 {[%emt 0:00:06]} R8a7 {[%emt 0:04:19]} 34. Nb5 {[%emt 0:06:45]} R7a2 {[%emt 0:03:14]} 35. Bf3 {[%emt 0:00:37]} Rxh1 {[%emt 0:00:11]} 36. Bxh1 {[%emt 0:00:33]} Bxd2 {[%emt 0:00:44]} 37. Bxd5+ {[%emt 0:00:06]} Ke7 {[%emt 0:00:19]} 38. Bxc4 {[%emt 0:00:17]} Ra4 {[%emt 0:00:18]} 39. Bb3 {[%emt 0:00:45]} Ra5 {[%emt 0:00:45]} 40. Nd4 {[%emt 0:00:21]} Be3 {[%emt 0:00:42]} 41. Nc6+ {[%emt 0:30:33]} Kd6 {[%emt 0:30:09]} 42. Nxa5 {[%emt 0:01:40]} bxa5 {[%emt 0:00:05]} 43. Kd3 {[%emt 0:00:17]} Bc1 {[%emt 0:00:00]} 44. Bg8 {[%emt 0:00:00]} h6 {[%emt 0:00:00]} 45. b3 {[%emt 0:00:00]} g5 {[%emt 0:00:00]} 46. Ke4 {[%emt 0:00:00]} Bd2 {[%emt 0:00:00]} 47. c4 {[%emt 0:00:00]} Kc5 {[%emt 0:00:00]} 48. Bf7 {[%emt 0:00:00]} gxf4 {[%emt 0:00:00]} 49. gxf4 {[%emt 0:00:00]} Bc1 {[%emt 0:00:00]} 50. Kf5 {[%emt 0:00:00]} Be3 {[%emt 0:00:00]} 51. Kg4 {[%emt 0:00:00]} Bd2 {[%emt 0:00:00]} 52. f5 {[%emt 0:00:00]} Be3 {[%emt 0:00:00]} 53. Be6 {[%emt 0:00:00]} Bd2 {[%emt 0:00:00]} 54. Kh5 {[%emt 0:00:00]} Bf4 {[%emt 0:00:00]} 55. h3 {[%emt 0:00:00]} Be3 {[%emt 0:00:00]} 56. Bg8 {[%emt 0:01:27]} Bd2 {[%emt 0:00:00]} 57. Bd5 {[%emt 0:01:45]} Be3 {[%emt 0:00:00]} 58. Kg6 {[%emt 0:00:41]} Bg5 {[%emt 0:00:00]} 59. Kf7 {[%emt 0:00:50]} Bh4 {[%emt 0:00:00]} 60. Kg7 {[%emt 0:03:49]} Bg5 {[%emt 0:00:00]} 61. Bg8 {[%emt 0:00:16]} Kb4 {[%emt 0:00:00]} 62. Kg6 {[%emt 0:00:07]} Kc5 {[%emt 0:00:00]} 63. Bd5 {[%emt 0:00:22]} Kb4 {[%emt 0:00:00]} 64. Kh5 {[%emt 0:00:06]} Be3 {[%emt 0:00:00]} 65. h4 {[%emt 0:00:38]} Bf2 {[%emt 0:00:00]} 66. Bg8 {[%emt 0:00:13]} Kc5 {[%emt 0:00:00]} 67. Bf7 {[%emt 0:00:03]} 1/2-1/2

[Event "FRA-chT Top 12 2019"]
[Site "Brest"]
[Date "2019.05.27"]
[Round "10.8"]
[White "De Seroux, Camille"]
[Black "Nelis, Jean-Francois"]
[Result "1/2-1/2"]
[ECO "B23"]
[WhiteElo "2143"]
[BlackElo "2149"]
[Annotator "NA"]
[PlyCount "55"]
[EventDate "2019.05.18"]
[EventType "team-tourn"]
[EventCountry "FRA"]
[SourceTitle "playchess.com"]
[Source "ChessBase"]
[SourceQuality "1"]
[TimeControl "40/5400+30:1800+30"]

1. e4 {[%emt 0:00:00]} c5 {[%emt 0:00:00]} 2. Nc3 {[%emt 0:00:00]} a6 {[%emt 0:00:20]} 3. Nge2 {[%emt 0:00:00]} e6 {[%emt 0:03:59]} 4. g3 {[%emt 0:00:16]} d6 {[%emt 0:03:28]} 5. Bg2 {[%emt 0:00:44]} Nc6 {[%emt 0:00:07]} 6. O-O {[%emt 0:02:03]} Nge7 {[%emt 0:00:46]} 7. Re1 {[%emt 0:11:18]} Nd4 {[%emt 0:10:26]} 8. Nxd4 {[%emt 0:01:41]} cxd4 {[%emt 0:00:08]} 9. Ne2 {[%emt 0:01:02]} Nc6 {[%emt 0:00:33]} 10. c3 {[%emt 0:05:10]} dxc3 {[%emt 0:00:44]} 11. dxc3 {[%emt 0:19:31]} Be7 {[%emt 0:00:23]} 12. Be3 {[%emt 0:05:06]} Bd7 {[%emt 0:06:31]} 13. c4 {[%emt 0:04:54]} O-O {[%emt 0:03:56]} 14. Nc3 {[%emt 0:02:07]} Rb8 {[%emt 0:05:16]} 15. Qe2 {[%emt 0:03:38]} Bf6 {[%emt 0:13:46]} 16. Rac1 {[%emt 0:03:57]} Bd4 {[%emt 0:00:28]} 17. Bxd4 {[%emt 0:13:25]} Nxd4 {[%emt 0:00:09]} 18. Qd3 {[%emt 0:00:58]} e5 {[%emt 0:02:18]} 19. Ne2 {[%emt 0:04:11]} Nxe2+ {[%emt 0:01:26]} 20. Rxe2 {[%emt 0:02:59]} Be6 {[%emt 0:00:14]} 21. Rd2 {[%emt 0:02:31]} Rc8 {[%emt 0:08:27]} 22. b3 {[%emt 0:08:18]} b5 {[%emt 0:11:23]} 23. Qxd6 {[%emt 0:02:28]} Qxd6 {[%emt 0:02:18]} 24. Rxd6 {[%emt 0:00:03]} bxc4 {[%emt 0:00:09]} 25. bxc4 {[%emt 0:04:00]} Rxc4 {[%emt 0:12:18]} 26. Rxc4 {[%emt 0:00:31]} Bxc4 {[%emt 0:00:03]} 27. Bf1 {[%emt 0:00:55]} Bxa2 {[%emt 0:00:10]} 28. Bxa6 {[%emt 0:00:54]} 1/2-1/2

[Event "FRA-chT Top 12 2019"]
[Site "Brest"]
[Date "2019.05.27"]
[Round "10.8"]
[White "Haussernot, Cecile"]
[Black "Fruteau, Sabine"]
[Result "1-0"]
[ECO "B04"]
[WhiteElo "2097"]
[BlackElo "2015"]
[Annotator "NA"]
[PlyCount "58"]
[EventDate "2019.05.18"]
[EventType "team-tourn"]
[EventCountry "FRA"]
[SourceTitle "playchess.com"]
[Source "ChessBase"]
[SourceQuality "1"]
[TimeControl "40/5400+30:1800+30"]

1. e4 {[%emt 0:00:00]} Nf6 {[%emt 0:00:00]} 2. e5 {[%emt 0:00:00]} Nd5 {[%emt 0:00:00]} 3. d4 {[%emt 0:00:00]} d6 {[%emt 0:02:45]} 4. Nf3 {[%emt 0:07:03]} Nb6 {[%emt 0:04:24]} 5. a4 {[%emt 0:02:40]} a5 6. Bb5+ c6 {[%emt 0:15:57]} 7. Bd3 {[%emt 0:01:32]} Bg4 {[%emt 0:01:38]} 8. h3 {[%emt 0:00:37]} Bxf3 {[%emt 0:06:22]} 9. Qxf3 {[%emt 0:00:15]} dxe5 {[%emt 0:00:26]} 10. dxe5 {[%emt 0:00:08]} e6 {[%emt 0:06:01]} 11. O-O {[%emt 0:00:27]} N8d7 {[%emt 0:01:38]} 12. Re1 {[%emt 0:14:48]} Qc7 {[%emt 0:16:26]} 13. Bf4 {[%emt 0:01:01]} Nd5 {[%emt 0:07:02]} 14. Bg3 {[%emt 0:01:52]} Nb4 {[%emt 0:04:16]} 15. Nc3 {[%emt 0:02:18]} Nxd3 {[%emt 0:01:26]} 16. Qxd3 {[%emt 0:00:26]} Be7 {[%emt 0:02:19]} 17. Bf4 {[%emt 0:03:36]} O-O-O {[%emt 0:07:33]} 18. Qe3 {[%emt 0:03:00]} Qb6 {[%emt 0:03:21]} 19. Qg3 {[%emt 0:01:14]} g5 {[%emt 0:05:15]} 20. Bc1 {[%emt 0:02:00]} Nc5 {[%emt 0:01:14]} 21. Rb1 {[%emt 0:01:53]} Qb4 {[%emt 0:03:31]} 22. Be3 {[%emt 0:11:33]} Rhg8 {[%emt 0:02:45]} 23. Bxc5 {[%emt 0:06:31]} Bxc5 {[%emt 0:00:24]} 24. Ne4 {[%emt 0:00:16]} Be7 {[%emt 0:01:10]} 25. b3 {[%emt 0:02:01]} g4 {[%emt 0:02:45]} 26. c3 {[%emt 0:02:10]} Qb6 {[%emt 0:00:09]} 27. hxg4 {[%emt 0:00:08]} Rh8 {[%emt 0:03:24]} 28. g5 {[%emt 0:01:25]} Kb8 {[%emt 0:01:01]} 29. Re3 {[%emt 0:00:31]} Rd5 {[%emt 0:00:40]} 1-0

[Event "FRA-chT Top 12 2019"]
[Site "Brest"]
[Date "2019.05.27"]
[Round "10.8"]
[White "Verot, Melanie"]
[Black "Bolon, Karelle"]
[Result "1-0"]
[ECO "A26"]
[WhiteElo "2069"]
[BlackElo "2018"]
[Annotator "NA"]
[PlyCount "69"]
[EventDate "2019.05.18"]
[EventType "team-tourn"]
[EventCountry "FRA"]
[SourceTitle "playchess.com"]
[Source "ChessBase"]
[SourceQuality "1"]
[TimeControl "40/5400+30:1800+30"]

1. c4 {[%emt 0:00:00]} e5 {[%emt 0:02:26]} 2. g3 {[%emt 0:02:49]} Nc6 {[%emt 0:07:10]} 3. Bg2 {[%emt 0:01:14]} g6 {[%emt 0:00:26]} 4. Nc3 {[%emt 0:01:07]} Bg7 {[%emt 0:00:33]} 5. d3 {[%emt 0:01:16]} d6 {[%emt 0:00:18]} 6. Nd5 {[%emt 0:06:44]} Nce7 {[%emt 0:03:21]} 7. Bg5 {[%emt 0:10:22]} f6 {[%emt 0:00:48]} 8. Bd2 {[%emt 0:00:45]} c6 {[%emt 0:00:59]} 9. Nc3 {[%emt 0:00:34]} Nh6 {[%emt 0:01:31]} 10. Qc2 {[%emt 0:07:20]} Be6 {[%emt 0:01:38]} 11. Ne4 {[%emt 0:08:40]} Nf7 {[%emt 0:02:38]} 12. Nf3 {[%emt 0:03:09]} h6 {[%emt 0:03:35]} 13. Bc3 {[%emt 0:08:50]} f5 {[%emt 0:03:18]} 14. Ned2 {[%emt 0:00:40]} d5 {[%emt 0:04:11]} 15. e3 {[%emt 0:03:07]} d4 {[%emt 0:10:56]} 16. exd4 {[%emt 0:01:55]} exd4 {[%emt 0:00:07]} 17. Bb4 {[%emt 0:01:03]} Rc8 {[%emt 0:06:32]} 18. O-O {[%emt 0:05:05]} c5 {[%emt 0:06:46]} 19. Ba3 {[%emt 0:01:04]} a5 {[%emt 0:04:13]} 20. Rfe1 {[%emt 0:01:12]} Bd7 {[%emt 0:03:32]} 21. Nh4 {[%emt 0:01:15]} Qb6 {[%emt 0:12:24]} 22. Nb3 {[%emt 0:03:02]} Ne5 {[%emt 0:04:43]} 23. Qe2 {[%emt 0:07:29]} a4 {[%emt 0:04:53]} 24. Nxd4 {[%emt 0:02:45]} cxd4 {[%emt 0:01:35]} 25. f4 {[%emt 0:00:13]} g5 {[%emt 0:02:33]} 26. Qh5+ {[%emt 0:01:47]} Kd8 {[%emt 0:02:22]} 27. Bxe7+ {[%emt 0:01:37]} Kc7 {[%emt 0:04:09]} 28. fxe5 {[%emt 0:04:04]} Be8 {[%emt 0:01:38]} 29. Bd6+ {[%emt 0:01:17]} Kd8 {[%emt 0:00:11]} 30. Qf3 {[%emt 0:02:38]} gxh4 {[%emt 0:02:32]} 31. Qf4 {[%emt 0:00:37]} Ra8 {[%emt 0:02:50]} 32. Qxh4+ {[%emt 0:00:40]} Kc8 {[%emt 0:00:28]} 33. Qe7 {[%emt 0:00:44]} Rg8 {[%emt 0:00:39]} 34. Qe6+ {[%emt 0:00:19]} Kd8 {[%emt 0:00:32]} 35. Qxg8 {[%emt 0:00:25]} 1-0

[Event "FRA-chT Top 12 2019"]
[Site "Brest"]
[Date "2019.05.28"]
[Round "11.1"]
[White "Oleksiyenko, Mykhaylo"]
[Black "Safarli, Eltaj"]
[Result "1-0"]
[ECO "C50"]
[WhiteElo "2595"]
[BlackElo "2624"]
[Annotator "RC"]
[PlyCount "79"]
[EventDate "2019.05.18"]
[EventType "team-tourn"]
[EventCountry "FRA"]
[SourceTitle "playchess.com"]
[Source "ChessBase"]
[SourceQuality "1"]
[TimeControl "40/5400+30:1800+30"]

1. e4 {[%emt 0:00:00]} e5 {[%emt 0:00:00]} 2. Nf3 {[%emt 0:00:00]} Nc6 {[%emt 0:00:00]} 3. Bc4 {[%emt 0:00:34]} Nf6 {[%emt 0:00:15]} 4. d3 {[%emt 0:00:34]} Bc5 {[%emt 0:00:05]} 5. O-O {[%emt 0:00:42]} d6 {[%emt 0:00:43]} 6. c3 {[%emt 0:00:42]} h6 {[%emt 0:00:44]} 7. Re1 {[%emt 0:00:39]} O-O {[%emt 0:00:28]} 8. Nbd2 {[%emt 0:01:49]} a6 {[%emt 0:02:13]} 9. Bb3 {[%emt 0:01:57]} Re8 {[%emt 0:03:23]} 10. Nf1 {[%emt 0:01:02]} Ba7 {[%emt 0:01:58]} 11. Ng3 {[%emt 0:00:28]} Be6 {[%emt 0:04:57]} 12. Bc2 {[%emt 0:06:46]} d5 {[%emt 0:02:04]} 13. exd5 {[%emt 0:00:25]} Bxd5 {[%emt 0:00:49]} 14. h3 {[%emt 0:01:40]} Qd7 {[%emt 0:04:30]} 15. b4 {[%emt 0:14:03]} Rad8 {[%emt 0:06:51]} 16. a4 {[%emt 0:08:24]} b5 {[%emt 0:03:23]} 17. Nh4 {[%emt 0:03:16]} Be6 {[%emt 0:05:32]} 18. Qf3 {[%emt 0:08:46]} Bd5 {[%emt 0:07:10]} 19. Ne4 {[%emt 0:03:46]} Nxe4 {[%emt 0:01:28]} 20. dxe4 {[%emt 0:00:03]} Bc4 {[%emt 0:00:05]} 21. axb5 {[%emt 0:04:22]} axb5 {[%emt 0:00:13]} 22. Nf5 {[%emt 0:01:02]} Re6 {[%emt 0:00:23]} 23. Rd1 {[%emt 0:06:43]} Qe8 {[%emt 0:01:52]} 24. Be3 {[%emt 0:02:28]} Bxe3 {[%emt 0:02:40]} 25. Nxe3 {[%emt 0:05:51]} Rf6 {[%emt 0:00:53]} 26. Qh5 {[%emt 0:03:10]} Rxd1+ {[%emt 0:08:11]} 27. Rxd1 {[%emt 0:00:53]} Qa8 {[%emt 0:30:03]} 28. Nd5 {[%emt 0:12:58]} Rg6 {[%emt 0:00:31]} 29. Bd3 {[%emt 0:01:45]} Bb3 {[%emt 0:04:53]} 30. Rf1 {[%emt 0:01:52]} Qa2 {[%emt 0:01:33]} 31. Qf3 {[%emt 0:02:41]} Rd6 {[%emt 0:03:59]} 32. Nxc7 {[%emt 0:04:25]} Ne7 {[%emt 0:01:46]} 33. Nxb5 {[%emt 0:00:46]} Rd8 {[%emt 0:00:01]} 34. Qe2 {[%emt 0:01:05]} Qa4 {[%emt 0:01:51]} 35. Bc4 {[%emt 0:00:38]} Ng6 {[%emt 0:00:57]} 36. Bxb3 {[%emt 0:00:34]} Qxb3 {[%emt 0:00:02]} 37. g3 {[%emt 0:00:11]} h5 {[%emt 0:01:22]} 38. h4 {[%emt 0:00:24]} Rb8 {[%emt 0:00:34]} 39. Ra1 {[%emt 0:01:21]} Rd8 {[%emt 0:00:36]} 40. Qa2 {[%emt 0:00:35]} 1-0

[Event "FRA-chT Top 12 2019"]
[Site "Brest"]
[Date "2019.05.28"]
[Round "11.2"]
[White "Miezis, Normunds"]
[Black "Gharamian, Tigran"]
[Result "1/2-1/2"]
[ECO "A13"]
[WhiteElo "2456"]
[BlackElo "2602"]
[Annotator "RC"]
[PlyCount "34"]
[EventDate "2019.05.18"]
[EventType "team-tourn"]
[EventCountry "FRA"]
[SourceTitle "playchess.com"]
[Source "ChessBase"]
[SourceQuality "1"]
[TimeControl "40/5400+30:1800+30"]

1. c4 {[%emt 0:00:00]} e6 {[%emt 0:00:00]} 2. e4 {[%emt 0:00:00]} c5 {[%emt 0:00:16]} 3. Nc3 {[%emt 0:00:30]} Nc6 {[%emt 0:00:06]} 4. Nf3 {[%emt 0:00:51]} Nge7 {[%emt 0:02:21]} 5. d4 {[%emt 0:04:34]} Nxd4 {[%emt 0:00:30]} 6. Nxd4 {[%emt 0:00:10]} cxd4 {[%emt 0:00:04]} 7. Qxd4 {[%emt 0:00:11]} Nc6 {[%emt 0:00:07]} 8. Qd2 {[%emt 0:00:57]} Bc5 {[%emt 0:01:53]} 9. Be2 {[%emt 0:00:53]} O-O {[%emt 0:00:41]} 10. O-O {[%emt 0:00:29]} d6 {[%emt 0:01:44]} 11. Kh1 {[%emt 0:05:07]} e5 {[%emt 0:05:17]} 12. f4 {[%emt 0:04:05]} exf4 {[%emt 0:00:22]} 13. Qxf4 {[%emt 0:02:42]} Be6 {[%emt 0:33:39]} 14. Qg3 {[%emt 0:03:53]} Ne5 {[%emt 0:00:26]} 15. Bf4 {[%emt 0:09:31]} Ng6 {[%emt 0:09:25]} 16. Rad1 {[%emt 0:04:38]} Nxf4 {[%emt 0:01:37]} 17. Rxf4 {[%emt 0:00:57]} Qe7 {[%emt 0:06:48]} 1/2-1/2